bitfinex-derivatives/quotes_SOLF0:USTF0_20250323
["timestamp","ask_amount","ask_price","bid_price","bid_amount"]
[1742704110065,0.0515086,130.18,130.16,18.32191713]
[1742704111673,0.0515086,130.18,130.16,7.73513673]
[1742704113961,0.0515086,130.18,130.17,7.6836]
[1742704118778,9.96228301,130.22,130.17,11.95918301]
[1742704118977,36.84228301,130.22,130.17,11.95918301]
[1742704119778,0.05019236,130.21,130.18,0.05513562]
[1742704120584,0.05019236,130.21,130.2,7.6818]
[1742704123487,0.05019236,130.21,130.2,17.64408301]
[1742704123989,36.84228301,130.25,130.24,7.6795]
[1742704125482,26.88,130.25,130.24,7.6795]
[1742704127383,36.84228301,130.25,130.12,15.3724]
[1742704127589,9.96228301,130.2,130.16,9.96228301]
[1742704127885,36.84228301,130.21,130.16,9.96228301]
[1742704128087,36.84228301,130.21,130.16,17.64628301]
[1742704128588,0.05259835,130.2,130.17,0.04901171]
[1742704129289,0.05259835,130.2,130.17,10.01129472]
[1742704131992,0.05259835,130.2,130.19,9.96228301]
[1742704132191,26.88,130.24,130.19,9.96228301]
[1742704132387,26.88,130.24,130.17,26.92901171]
[1742704132388,26.88,130.24,130.2,9.96228301]
[1742704132585,17.64158301,130.25,130.2,9.96228301]
[1742704132783,44.52158301,130.25,130.2,9.96228301]
[1742704132989,26.88,130.25,130.21,9.96228301]
[1742704133386,0.0502684,130.24,130.22,0.05372164]
[1742704136593,7.7297684,130.24,130.22,0.05372164]
[1742704139001,7.6801,130.23,130.22,0.05372164]
[1742704145503,0.0502684,130.24,130.22,0.05372164]
[1742704146000,0.0502684,130.24,130.22,7.73422164]
[1742704147299,0.0502684,130.24,130.23,7.6801]
[1742704147505,0.0502684,130.24,130.22,0.05372164]
[1742704148603,0.0502684,130.24,130.22,7.73412164]
[1742704153813,0.0502684,130.24,130.23,7.6801]
[1742704155413,0.0502684,130.24,130.22,7.73402164]
[1742704159614,0.0502684,130.24,130.23,7.6801]
[1742704171626,0.0502684,130.24,130.22,7.73412164]
[1742704174327,0.0502684,130.24,130.23,7.6801]
[1742704175530,0.0502684,130.24,130.22,7.73402164]
[1742704176327,0.0502684,130.24,130.23,7.6801]
[1742704179522,36.84228301,130.28,130.25,7.6784]
[1742704179927,44.51978301,130.28,130.25,7.6784]
[1742704180735,17.69048947,130.28,130.25,7.73093767]
[1742704181934,0.05070646,130.28,130.27,7.6777]
[1742704182336,261.0756,130.31,130.28,7.6766]
[1742704182542,9.96228301,130.3,130.28,7.6766]
[1742704183644,9.96228301,130.29,130.28,0.05797509]
[1742704184344,17.63878301,130.29,130.28,0.05797509]
[1742704189241,17.63878301,130.29,130.2,9.96228301]
[1742704189242,9.96228301,130.29,130.2,9.96228301]
[1742704189544,9.96228301,130.24,130.18,6.3432]
[1742704189745,9.96228301,130.23,130.19,26.86]
[1742704189945,17.64288301,130.23,130.19,26.86]
[1742704190341,0.05543687,130.22,130.2,0.05089598]
[1742704190852,7.73613687,130.22,130.2,0.05089598]
[1742704192350,0.05543687,130.22,130.2,0.05089598]
[1742704192547,0.05543687,130.22,130.2,10.01317899]
[1742704193052,0.05543687,130.22,130.21,9.96228301]
[1742704194452,26.86,130.25,130.21,9.96228301]
[1742704194649,36.82228301,130.27,130.22,9.96228301]
[1742704195354,9.96228301,130.28,130.24,7.6794]
[1742704195657,0.04895811,130.26,130.24,7.6794]
[1742704198550,0.04895811,130.26,130.23,17.69131266]
[1742704198856,7.72745811,130.26,130.23,7.72902965]
[1742704199249,36.82228301,130.25,130.23,0.04922965]
[1742704199453,9.96228301,130.24,130.23,0.04922965]
[1742704199759,17.64178301,130.24,130.23,0.04922965]
[1742704203058,34.5391,130.25,130.23,0.04922965]
[1742704203257,7.6791,130.25,130.23,0.04922965]
[1742704205854,7.6791,130.25,130.23,7.72922965]
[1742704206060,10.01124112,130.26,130.23,0.04922965]
[1742704206061,0.04895811,130.26,130.23,0.04922965]
[1742704206558,7.72765811,130.26,130.23,7.72902965]
[1742704206961,10.01124112,130.26,130.23,0.04922965]
[1742704207354,7.6789,130.25,130.23,0.04922965]
[1742704208360,17.68984112,130.26,130.23,0.04922965]
[1742704209261,7.72755811,130.26,130.23,0.04922965]
[1742704209560,7.72755811,130.26,130.23,7.72892965]
[1742704210055,7.72755811,130.26,130.23,0.04922965]
[1742704210056,0.04895811,130.26,130.23,0.04922965]
[1742704210259,0.04895811,130.26,130.23,36.87151266]
[1742704210461,0.04895811,130.26,130.24,7.6791]
[1742704210857,0.04895811,130.26,130.24,9.96228301]
[1742704212556,0.04895811,130.26,130.25,7.6789]
[1742704212761,0.04895811,130.26,130.24,9.96228301]
[1742704212961,0.04895811,130.26,130.25,7.6789]
[1742704214364,26.86,130.29,130.26,7.6778]
[1742704214566,26.86,130.29,130.26,17.64008301]
[1742704214861,17.63858301,130.3,130.26,17.64008301]
[1742704215254,44.49788301,130.31,130.27,7.6777]
[1742704215458,0.04870351,130.29,130.27,7.7346165]
[1742704216465,7.6771,130.28,130.27,0.0569165]
[1742704216761,17.63938301,130.28,130.27,0.0569165]
[1742704221863,7.6771,130.28,130.27,0.0569165]
[1742704230175,17.63938301,130.28,130.27,0.0569165]
[1742704230376,17.63938301,130.28,130.27,0.00169128]
[1742704230770,0.04870351,130.29,130.27,9.96397429]
[1742704231078,10.59719655,130.34,130.28,36.82228301]
[1742704231376,9.96228301,130.33,130.29,17.63858301]
[1742704231569,9.96228301,130.32,130.28,40.83448301]
[1742704231974,0.05697486,130.31,130.29,7.72752264]
[1742704233269,0.05697486,130.31,130.29,0.05102264]
[1742704236576,7.73247486,130.31,130.29,0.05102264]
[1742704237078,0.05697486,130.31,130.29,0.05102264]
[1742704238379,7.73237486,130.31,130.29,0.05102264]
[1742704239481,0.05697486,130.31,130.29,0.05102264]
[1742704239683,0.05697486,130.31,130.29,10.01330565]
[1742704240083,0.05697486,130.31,130.3,9.96228301]
[1742704240584,0.05697486,130.31,130.3,17.63818301]
[1742704240789,7.6739,130.34,130.3,17.63818301]
[1742704241380,7.6742,130.33,130.3,17.63818301]
[1742704241776,9.96228301,130.35,130.3,17.63818301]
[1742704241982,0.05423639,130.33,130.3,17.63818301]
[1742704242479,7.72853639,130.33,130.3,17.63818301]
[1742704245889,0.05423639,130.33,130.3,17.63818301]
[1742704246590,7.72843639,130.33,130.3,17.63818301]
[1742704246790,0.05423639,130.33,130.31,7.6753]
[1742704248987,0.05423639,130.33,130.3,17.63798301]
[1742704249586,7.72843639,130.33,130.3,17.63798301]
[1742704250691,0.05423639,130.33,130.31,7.6753]
[1742704252587,0.05423639,130.33,130.32,7.6748]
[1742704252793,9.96228301,130.37,130.32,9.96228301]
[1742704253187,7.6727,130.36,130.32,17.63678301]
[1742704253993,0.05621563,130.35,130.33,0.05372972]
[1742704255693,0.05621563,130.35,130.33,7.72782972]
[1742704256790,0.05621563,130.35,130.34,7.6736]
[1742704260096,0.05621563,130.35,130.34,17.63588301]
[1742704260697,0.05621563,130.35,130.33,34.56762972]
[1742704260891,10.01849864,130.35,130.33,0.05372972]
[1742704261194,9.96228301,130.34,130.28,2.0753]
[1742704261388,9.96228301,130.3,130.28,2.0753]
[1742704261901,9.96228301,130.29,130.25,2.047]
[1742704262198,9.96228301,130.27,130.24,28.7913]
[1742704262393,7.678,130.27,130.26,0.04906445]
[1742704262596,17.64028301,130.27,130.26,0.04906445]
[1742704262797,7.678,130.27,130.26,0.04906445]
[1742704262991,17.6883059,130.28,130.26,0.04906445]
[1742704263500,7.72602289,130.28,130.26,0.04906445]
[1742704263999,17.63998301,130.27,130.26,0.04906445]
[1742704264204,17.63998301,130.27,130.22,14.10388301]
[1742704264205,9.96228301,130.27,130.2,38.93108301]
[1742704264500,9.96228301,130.23,130.19,26.86]
[1742704264797,17.64278301,130.23,130.18,44.52508301]
[1742704265000,17.64278301,130.23,130.19,9.96228301]
[1742704265203,9.96228301,130.25,130.2,9.96228301]
[1742704265404,253.2,130.28,130.24,9.96228301]
[1742704265597,263.16228301,130.28,130.24,9.96228301]
[1742704265903,9.96228301,130.27,130.22,19.67768301]
[1742704266097,9.96228301,130.26,130.22,11.99738301]
[1742704266598,0.05219589,130.25,130.23,0.05621784]
[1742704269800,0.05219589,130.25,130.24,36.90228301]
[1742704270197,0.05219589,130.25,130.24,44.58178301]
[1742704275309,0.05219589,130.25,130.23,7.73611784]
[1742704275802,17.64178301,130.24,130.23,0.05621784]
[1742704276713,10.0144789,130.25,130.23,0.05621784]
[1742704276907,0.05219589,130.25,130.23,10.01850085]
[1742704277509,0.05219589,130.25,130.24,7.6795]
[1742704285324,9.96228301,130.31,130.24,9.96228301]
[1742704285519,36.92228301,130.31,130.27,9.96228301]
[1742704285823,34.6557,130.31,130.27,9.96228301]
[1742704286024,34.6557,130.31,130.27,17.63968301]
[1742704286520,0.05712051,130.3,130.28,0.0515558]
[1742704287718,7.73312051,130.3,130.28,0.0515558]
[1742704289524,7.6765,130.29,130.28,0.0515558]
[1742704290622,44.61878301,130.29,130.28,0.0515558]
[1742704290818,44.61878301,130.29,130.23,9.96228301]
[1742704291025,44.61878301,130.29,130.18,27.04]
[1742704291026,9.96228301,130.24,130.18,27.04]
[1742704291218,9.96228301,130.22,130.18,27.04]
[1742704291616,7.6816,130.21,130.18,37.00228301]
[1742704292023,0.05178951,130.21,130.18,10.01328771]
[1742704292217,0.05178951,130.21,130.18,37.05328771]
[1742704293021,0.05178951,130.21,130.18,44.73598771]
[1742704293420,0.05178951,130.21,130.19,9.96228301]
[1742704294023,0.05178951,130.21,130.19,17.64448301]
[1742704294419,0.05178951,130.21,130.2,9.96228301]
[1742704294619,0.05178951,130.21,130.2,17.64408301]
[1742704295325,0.05178951,130.21,130.2,7.6818]
[1742704295717,0.05178951,130.21,130.19,9.96228301]
[1742704295718,0.05178951,130.21,130.19,17.64448301]
[1742704296123,0.05178951,130.21,130.19,9.96228301]
[1742704297623,0.05178951,130.21,130.2,7.6818]
[1742704303026,0.05178951,130.21,130.2,9.6694]
[1742704305529,270.98028301,130.27,130.2,1.9876]
[1742704305729,270.98028301,130.27,130.22,9.96228301]
[1742704305922,7.6784,130.26,130.22,9.96228301]
[1742704306127,7.6784,130.26,130.22,17.64268301]
[1742704306831,0.05879203,130.25,130.23,0.056973]
[1742704310330,0.05879203,130.25,130.23,10.01925601]
[1742704311533,0.05879203,130.25,130.24,7.6795]
[1742704315536,7.73769203,130.25,130.23,0.056973]
[1742704317537,0.05879203,130.25,130.23,7.736873]
[1742704317937,0.05879203,130.25,130.23,0.056973]
[1742704318137,0.05879203,130.25,130.24,7.6795]
[1742704320137,0.05879203,130.25,130.23,7.736773]
[1742704322041,7.73769203,130.25,130.23,0.056973]
[1742704322340,0.05879203,130.25,130.23,0.056973]
[1742704322538,7.73769203,130.25,130.23,0.056973]
[1742704323439,7.73769203,130.25,130.23,7.736973]
[1742704326446,0.05879203,130.25,130.23,7.736973]
[1742704326945,0.05879203,130.25,130.23,0.056973]
[1742704327145,10.02107504,130.25,130.23,0.056973]
[1742704328045,17.64178301,130.24,130.23,0.056973]
[1742704330444,17.64228301,130.24,130.17,26.96]
[1742704330641,9.96228301,130.19,130.15,28.9907]
[1742704330842,9.96228301,130.18,130.15,28.9907]
[1742704331142,17.64558301,130.18,130.15,36.6752]
[1742704331649,17.70007005,130.18,130.15,36.7286494]
[1742704332250,0.05448704,130.18,130.16,9.96228301]
[1742704333046,0.05448704,130.18,130.16,17.64618301]
[1742704333249,0.05448704,130.18,130.16,9.96228301]
[1742704334450,0.05448704,130.18,130.16,17.64598301]
[1742704335050,0.05448704,130.18,130.17,7.6836]
[1742704335946,0.05448704,130.18,130.16,17.64618301]
[1742704336145,0.05448704,130.18,130.16,9.96228301]
[1742704336344,9.96228301,130.21,130.17,9.96228301]
[1742704336748,9.96228301,130.21,130.18,7.6829]
[1742704337449,10.01228655,130.21,130.18,7.73162283]
[1742704337638,0.05000354,130.21,130.18,0.04872283]
[1742704337843,0.05000354,130.21,130.19,9.96228301]
[1742704338248,0.05000354,130.21,130.2,17.64408301]
[1742704338445,36.96228301,130.25,130.2,9.96228301]
[1742704339551,0.03254429,130.24,130.22,7.6803]
[1742704339751,0.03254429,130.24,130.21,10.01562368]
[1742704339951,0.03254429,130.24,130.22,9.96228301]
[1742704341449,0.03254429,130.24,130.23,7.6801]
[1742704349349,0.03254429,130.24,130.22,17.64268301]
[1742704349548,0.03254429,130.24,130.22,9.96228301]
[1742704350455,0.03254429,130.24,130.23,7.6801]
[1742704350954,0.03254429,130.24,130.22,9.96228301]
[1742704351351,0.03254429,130.24,130.22,17.64258301]
[1742704355862,103.45295335,132.0,130.23,9.96228301]
[1742704355863,36.86228301,130.28,130.23,9.96228301]
[1742704356054,9.96228301,130.28,130.24,36.88228301]
[1742704356356,9.96228301,130.28,130.25,7.6785]
[1742704356960,9.96228301,130.28,130.25,7.72890159]
[1742704357260,9.96228301,130.28,130.26,7.6782]
[1742704357461,280.34,130.31,130.27,9.96228301]
[1742704357659,290.30228301,130.31,130.27,9.96228301]
[1742704357960,297.97798301,130.31,130.28,7.72589608]
[1742704358458,34.5957,130.31,130.28,7.72589608]
[1742704358658,34.5957,130.31,130.29,7.6765]
[1742704359456,17.63728301,130.32,130.28,7.72609608]
[1742704359762,52.35106921,130.33,130.28,10.01137909]
[1742704359960,52.35106921,130.33,130.29,9.96228301]
[1742704360259,42.3887862,130.33,130.29,9.96228301]
[1742704360559,36.90228301,130.34,130.29,9.96228301]
[1742704361260,36.90228301,130.34,130.29,17.63858301]
[1742704361261,7.6742,130.33,130.29,17.63858301]
[1742704363159,7.6749,130.32,130.29,9.96228301]
[1742704365162,9.96228301,130.33,130.29,9.96228301]
[1742704365355,9.96228301,130.33,130.28,19.62997909]
[1742704366465,7.6755,130.31,130.28,19.62997909]
[1742704367058,7.6755,130.31,130.28,11.95307909]
[1742704368265,7.675,130.32,130.28,19.62987909]
[1742704369771,7.675,130.32,130.29,9.96228301]
[1742704373663,7.6754,130.31,130.28,19.62987909]
[1742704373869,9.96228301,130.31,130.28,1.99079608]
[1742704374069,9.96228301,130.31,130.28,0.04909608]
[1742704374978,9.96228301,130.32,130.28,0.04909608]
[1742704375470,17.63728301,130.32,130.28,10.01137909]
[1742704375676,9.96228301,130.32,130.28,10.01137909]
[1742704376076,9.96228301,130.32,130.29,7.6765]
[1742704376474,9.96228301,130.33,130.29,7.6765]
[1742704377573,7.6748,130.32,130.29,7.6765]
[1742704380581,7.6748,130.32,130.28,17.68817909]
[1742704380879,9.96228301,130.31,130.28,0.04909608]
[1742704381276,7.6764,130.3,130.28,0.04909608]
[1742704381775,7.6759,130.3,130.28,0.04909608]
[1742704383674,34.5356,130.31,130.28,0.04909608]
[1742704383880,36.82228301,130.33,130.29,7.6765]
[1742704384282,36.82228301,130.33,130.3,0.05618282]
[1742704384481,26.86,130.33,130.3,7.73208282]
[1742704384682,26.86,130.33,130.3,0.05618282]
[1742704385385,34.5346,130.33,130.3,0.05618282]
[1742704387384,44.49688301,130.33,130.3,0.05618282]
[1742704388281,44.49688301,130.33,130.3,7.73198282]
[1742704388686,7.6748,130.32,130.3,0.05618282]
[1742704390492,44.49668301,130.33,130.3,0.05618282]
[1742704390997,7.6749,130.32,130.3,0.05618282]
[1742704391697,44.49668301,130.33,130.3,7.73208282]
[1742704393296,9.96228301,130.33,130.3,7.73208282]
[1742704393692,26.86,130.34,130.3,10.01846583]
[1742704393894,9.96228301,130.38,130.33,9.96228301]
[1742704394090,26.86,130.37,130.33,9.96228301]
[1742704394286,7.6722,130.37,130.34,7.73173161]
[1742704394495,79.23106921,130.39,130.34,10.02081462]
[1742704394993,9.96228301,130.38,130.34,0.05853161]
[1742704395200,9.96228301,130.37,130.34,0.05853161]
[1742704395494,9.96228301,130.35,130.34,0.05853161]
[1742704395696,36.86228301,130.35,130.34,0.05853161]
[1742704395998,36.86228301,130.35,130.29,26.92]
[1742704396298,9.96228301,130.32,130.29,26.92]
[1742704396598,17.63728301,130.32,130.28,9.96228301]
[1742704396800,9.96228301,130.34,130.29,9.96228301]
[1742704397196,7.72357005,130.33,130.3,0.05055567]
[1742704398499,7.6748,130.32,130.3,0.05055567]
[1742704398800,0.04917005,130.33,130.3,0.05055567]
[1742704400195,10.01145306,130.33,130.3,0.05055567]
[1742704400395,9.96228301,130.32,130.3,0.05055567]
[1742704400800,7.6753,130.31,130.3,0.05055567]
[1742704418316,17.63728301,130.32,130.3,0.05055567]
[1742704418612,7.675,130.32,130.3,0.05055567]
[1742704430920,7.72357005,130.33,130.3,7.72645567]
[1742704432825,7.6749,130.32,130.3,0.05055567]
[1742704435427,7.6753,130.31,130.3,0.05055567]
[1742704435928,17.63758301,130.31,130.3,0.05055567]
[1742704439431,7.678,130.27,130.25,2.0944]
[1742704439633,42.8424862,130.36,130.23,263.22228301]
[1742704439634,9.96228301,130.28,130.23,263.22228301]
[1742704439837,9.96228301,130.27,130.22,9.96228301]
[1742704440036,9.96228301,130.26,130.22,36.82228301]
[1742704440432,26.86,130.29,130.21,16.14998301]
[1742704440433,9.96228301,130.25,130.21,16.14998301]
[1742704440637,10.01441901,130.25,130.23,0.05614082]
[1742704440832,7.6795,130.24,130.23,0.05614082]
[1742704441034,17.64178301,130.24,130.23,0.05614082]
[1742704441239,9.96228301,130.24,130.19,42.1967841]
[1742704441447,9.96228301,130.21,130.19,42.1967841]
[1742704441851,9.96228301,130.21,130.17,55.09236341]
[1742704442049,17.64388301,130.21,130.17,55.09236341]
[1742704442349,0.05077785,130.2,130.18,0.05595128]
[1742704445949,0.05077785,130.2,130.18,7.73885128]
[1742704447351,0.05077785,130.2,130.19,7.6824]
[1742704448954,36.82228301,130.24,130.19,9.96228301]
[1742704449155,36.82228301,130.24,130.18,4.20465128]
[1742704449156,36.82228301,130.24,130.2,9.96228301]
[1742704450054,36.82228301,130.24,130.22,7.6803]
[1742704450253,0.05587412,130.23,130.22,7.6803]
[1742704452154,0.05587412,130.23,130.22,17.64258301]
[1742704452355,9.96228301,130.27,130.24,7.6791]
[1742704452555,36.84228301,130.27,130.24,7.6791]
[1742704452945,9.96228301,130.25,130.23,7.6798]
[1742704453255,26.88,130.27,130.23,7.6798]
[1742704453256,9.96228301,130.24,130.23,7.6798]
[1742704455055,10.01844658,130.25,130.23,7.6798]
[1742704455251,0.05616357,130.25,130.23,7.6798]
[1742704455452,0.05616357,130.25,130.24,7.6795]
[1742704455850,10.01844658,130.25,130.22,0.04854456]
[1742704456052,10.01844658,130.25,130.22,7.72884456]
[1742704457159,10.01844658,130.25,130.23,7.6799]
[1742704457556,0.05616357,130.25,130.22,0.04854456]
[1742704457756,0.05616357,130.25,130.24,7.6795]
[1742704458555,0.05616357,130.25,130.23,7.6799]
[1742704462070,17.69764658,130.25,130.22,7.72894456]
[1742704462367,9.96228301,130.24,130.22,7.72894456]
[1742704463568,9.96228301,130.24,130.23,7.6801]
[1742704465266,10.01844658,130.25,130.23,7.6801]
[1742704466870,10.01844658,130.25,130.24,7.6795]
[1742704471374,0.05616357,130.25,130.24,7.6795]
[1742704475880,36.82228301,130.29,130.26,7.6778]
[1742704476974,36.82228301,130.29,130.26,7.73466635]
[1742704477883,36.82228301,130.29,130.27,7.6776]
[1742704478080,9.96228301,130.28,130.27,7.6776]
[1742704478783,36.82228301,130.29,130.27,7.6776]
[1742704479086,9.96228301,130.29,130.27,7.6776]
[1742704481784,9.96228301,130.29,130.28,7.6771]
[1742704483889,9.96228301,130.29,130.27,7.6775]
[1742704485892,9.96228301,130.29,130.26,7.73486635]
[1742704486994,17.63888301,130.29,130.26,7.73486635]
[1742704488294,9.96228301,130.28,130.26,7.73486635]
[1742704489493,9.96228301,130.29,130.26,7.73486635]
[1742704490396,17.63878301,130.29,130.26,7.73486635]
[1742704492394,17.63878301,130.29,130.26,0.05686635]
[1742704492988,17.63878301,130.29,130.26,7.73506635]
[1742704493492,17.63848301,130.3,130.27,7.6775]
[1742704493687,290.08228301,130.31,130.26,10.01914936]
[1742704494200,297.75818301,130.31,130.27,7.6773]
[1742704494491,290.08228301,130.31,130.27,7.6773]
[1742704494698,297.75788301,130.31,130.27,7.6773]
[1742704495600,17.63868301,130.3,130.27,7.6773]
[1742704498797,17.63868301,130.3,130.26,34.59486635]
[1742704500188,7.6766,130.29,130.26,34.59486635]
[1742704512194,36.82228301,130.31,130.26,36.87914936]
[1742704512400,26.86,130.31,130.27,9.96228301]
[1742704512700,17.63738301,130.32,130.29,7.6762]
[1742704513099,17.63738301,130.32,130.29,7.72654212]
[1742704514903,17.63738301,130.32,130.29,0.05034212]
[1742704517207,7.6754,130.31,130.29,0.05034212]
[1742704518302,7.6759,130.3,130.29,0.05034212]
[1742704518606,17.63818301,130.3,130.29,0.05034212]
[1742704518808,44.49818301,130.3,130.29,0.05034212]
[1742704532924,7.6789,130.25,130.24,1.9679]
[1742704533125,7.6789,130.25,130.23,30.9275]
[1742704533519,7.6795,130.24,130.23,30.9275]
[1742704534621,7.6795,130.24,130.23,4.0675]
[1742704545234,7.6801,130.23,130.22,0.05304684]
[1742704550534,17.64238301,130.23,130.22,0.05304684]
[1742704553635,7.6801,130.23,130.22,0.05304684]
[1742704555741,17.64238301,130.23,130.22,0.05304684]
[1742704561445,34.5397,130.24,130.22,0.05304684]
[1742704561641,7.6797,130.24,130.22,0.05304684]
[1742704563846,7.6801,130.23,130.22,0.05304684]
[1742704568647,17.64238301,130.23,130.22,0.05304684]
[1742704569540,9.96228301,130.23,130.22,0.05304684]
[1742704569738,17.64198301,130.24,130.22,0.05304684]
[1742704576359,9.96228301,130.24,130.22,0.05304684]
[1742704576556,17.69378026,130.25,130.22,0.05304684]
[1742704577156,7.6795,130.24,130.22,0.05304684]
[1742704577456,17.64178301,130.24,130.22,0.05304684]
[1742704577656,9.96228301,130.23,130.22,0.05304684]
[1742704578554,17.64238301,130.23,130.22,0.05304684]
[1742704579651,7.6801,130.23,130.22,0.05304684]
[1742704580854,17.64238301,130.23,130.22,0.05304684]
[1742704582256,44.50238301,130.23,130.22,0.05304684]
[1742704582958,36.82228301,130.23,130.22,0.05304684]
[1742704583257,26.86,130.23,130.22,0.05304684]
[1742704584858,17.64198301,130.24,130.22,0.05304684]
[1742704585958,17.64238301,130.23,130.22,0.05304684]
[1742704595473,9.96228301,130.23,130.15,38.6314]
[1742704595777,9.96228301,130.19,130.15,38.6314]
[1742704596075,9.96228301,130.19,130.15,11.7714]
[1742704596374,17.64498301,130.19,130.15,11.7714]
[1742704596672,0.05239286,130.18,130.16,7.73810341]
[1742704597069,26.86,130.2,130.16,10.01628642]
[1742704597268,9.96228301,130.21,130.18,7.6828]
[1742704597766,9.96228301,130.21,130.19,7.6824]
[1742704597965,9.96228301,130.21,130.17,36.82228301]
[1742704598171,10.01067394,130.21,130.19,0.05834484]
[1742704600183,10.01067394,130.21,130.19,7.74074484]
[1742704600380,0.04839093,130.21,130.19,7.74074484]
[1742704604785,0.04839093,130.21,130.19,0.05834484]
[1742704605783,7.72969093,130.21,130.19,0.05834484]
[1742704606179,0.04839093,130.21,130.19,0.05834484]
[1742704608992,9.96228301,130.2,130.19,0.05834484]
[1742704609386,17.64408301,130.2,130.19,0.05834484]
[1742704623293,17.64408301,130.2,130.19,0.00174554]
[1742704652815,9.96228301,130.2,130.19,0.00174554]
[1742704653119,7.72979093,130.21,130.19,0.00174554]
[1742704654118,17.69207394,130.21,130.19,0.00174554]
[1742704654613,17.64408301,130.2,130.19,0.00174554]
[1742704672831,0.04839093,130.21,130.19,9.96402855]
[1742704673033,42.3887862,130.23,130.2,9.96228301]
[1742704673230,42.3887862,130.23,130.2,14.07818301]
[1742704673530,52.35106921,130.23,130.2,4.1159]
[1742704673830,9.96228301,130.21,130.2,4.1159]
[1742704674025,17.64328301,130.22,130.2,4.1159]
[1742704674334,7.7325415,130.22,130.2,4.1159]
[1742704674531,0.0515415,130.22,130.2,4.1159]
[1742704674726,9.96228301,130.21,130.2,4.1159]
[1742704675531,10.01382451,130.22,130.2,4.1159]
[1742704675731,0.0515415,130.22,130.2,4.1159]
[1742704677630,28.36,130.23,130.2,4.1159]
[1742704677836,17.64198301,130.24,130.2,4.1159]
[1742704678236,17.64198301,130.24,130.2,11.7974]
[1742704679232,9.96228301,130.24,130.21,7.681]
[1742704679439,46.00138301,130.25,130.21,7.681]
[1742704679937,46.00138301,130.25,130.22,0.05792853]
[1742704680839,46.00138301,130.25,130.22,7.73852853]
[1742704683735,38.24228301,130.26,130.23,7.6797]
[1742704684034,38.24228301,130.26,130.22,1.9992]
[1742704684235,9.96228301,130.25,130.23,0.05191726]
[1742704684443,9.96228301,130.24,130.23,0.05191726]
[1742704684640,17.64178301,130.24,130.23,0.05191726]
[1742704684839,9.96228301,130.24,130.23,0.05191726]
[1742704686445,17.64178301,130.24,130.23,0.05191726]
[1742704690249,45.88138301,130.25,130.23,0.05191726]
[1742704690643,17.64138301,130.25,130.23,0.05191726]
[1742704691050,17.64178301,130.24,130.23,0.05191726]
[1742704691551,9.96228301,130.24,130.23,0.05191726]
[1742704693147,45.84138301,130.25,130.23,0.05191726]
[1742704702757,7.6795,130.24,130.23,0.05191726]
[1742704707955,45.84138301,130.25,130.23,0.05191726]
[1742704710364,38.16228301,130.25,130.23,0.05191726]
[1742704710557,9.96228301,130.25,130.23,0.05191726]
[1742704711563,17.64068301,130.26,130.23,0.05191726]
[1742704714556,7.6791,130.25,130.23,0.05191726]
[1742704718470,17.64088301,130.26,130.23,0.05191726]
[1742704718666,9.96228301,130.25,130.23,0.05191726]
[1742704721771,17.64118301,130.25,130.23,0.05191726]
[1742704724777,7.6789,130.25,130.23,0.05191726]
[1742704727178,7.6795,130.24,130.23,0.05191726]
[1742704729776,14.81267442,130.25,130.23,0.05191726]
[1742704737979,14.81297442,130.24,130.23,0.05191726]
[1742704740382,7.13347442,130.24,130.23,0.05191726]
[1742704742974,14.81297442,130.24,130.23,0.05191726]
[1742704744383,42.35297442,130.24,130.23,0.05191726]
[1742704757903,42.35629756,130.24,130.23,0.05191726]
[1742704758401,7.13679756,130.21,130.17,2.1219]
[1742704758603,7.13679756,130.2,130.17,2.1219]
[1742704758803,7.6827,130.19,130.17,2.1219]
[1742704759604,7.74092856,130.19,130.17,2.17763425]
[1742704761203,14.81979756,130.18,130.17,0.05573425]
[1742704761397,14.82414797,130.18,130.17,0.05573425]
[1742704771719,42.12414797,130.18,130.17,0.05573425]
[1742704781522,7.6849,130.15,130.12,9.6358]
[1742704781721,14.82604797,130.15,130.12,9.6358]
[1742704782619,14.87935518,130.15,130.12,9.68548717]
[1742704782815,7.19445518,130.15,130.12,9.68548717]
[1742704783322,0.05330721,130.15,130.12,9.68548717]
[1742704783521,0.05330721,130.15,130.13,7.6859]
[1742704786918,127.86096565,130.24,130.14,34.32114797]
[1742704787123,7.14114797,130.21,130.16,7.14114797]
[1742704787518,14.82264797,130.21,130.17,7.6832]
[1742704787718,7.14114797,130.21,130.17,7.6832]
[1742704788117,0.05471823,130.2,130.18,0.05804011]
[1742704789525,7.73661823,130.2,130.18,0.05804011]
[1742704789929,0.05471823,130.2,130.18,0.05804011]
[1742704790130,0.05471823,130.2,130.18,7.74084011]
[1742704790831,0.05471823,130.2,130.19,7.6824]
[1742704797233,0.05471823,130.2,130.18,9.68334011]
[1742704799233,0.05471823,130.2,130.19,7.6824]